bitfinex-derivatives/quotes_SOLF0:USTF0_20250419
["timestamp","ask_amount","ask_price","bid_price","bid_amount"]
[1745074140571,8.83952024,139.35,139.29,25.16]
[1745074140770,8.83952024,139.33,139.29,25.16]
[1745074140974,8.83952024,139.33,139.29,33.99952024]
[1745074141370,33.99952024,139.35,139.32,7.1777]
[1745074141871,8.83952024,139.35,139.29,25.16]
[1745074142171,8.83952024,139.35,139.3,8.83952024]
[1745074142369,8.83952024,139.37,139.3,8.83952024]
[1745074142772,8.83952024,139.37,139.34,7.1768]
[1745074144272,8.83952024,139.37,139.35,7.1767]
[1745074145573,8.83952024,139.37,139.34,7.177]
[1745074146473,16.01532024,139.37,139.34,7.177]
[1745074147676,8.83952024,139.37,139.34,7.177]
[1745074147868,8.83952024,139.37,139.35,7.1766]
[1745074148980,8.83952024,139.37,139.36,7.1762]
[1745074149179,25.16,139.38,139.32,33.99952024]
[1745074151177,25.16,139.38,139.36,7.1759]
[1745074152080,25.16,139.38,139.37,7.1757]
[1745074157880,25.16,139.38,139.36,7.176]
[1745074159379,8.83952024,139.37,139.35,7.1765]
[1745074161078,8.83952024,139.37,139.34,7.1769]
[1745074161580,8.83952024,139.37,139.32,25.16]
[1745074163184,8.83952024,139.37,139.34,7.1768]
[1745074163587,8.83952024,139.37,139.32,25.16]
[1745074163787,8.83952024,139.37,139.35,7.1764]
[1745074164985,8.83952024,139.37,139.36,7.1762]
[1745074165888,8.83952024,139.37,139.35,7.1764]
[1745074166186,8.83952024,139.37,139.35,7.2218638]
[1745074173198,8.83952024,139.37,139.36,7.1762]
[1745074175193,8.83952024,139.37,139.35,7.2218638]
[1745074175796,16.01522024,139.37,139.35,0.0454638]
[1745074178701,8.83952024,139.37,139.35,0.0454638]
[1745074183003,16.01522024,139.37,139.35,0.0454638]
[1745074184199,8.83952024,139.37,139.35,0.0454638]
[1745074186506,8.83952024,139.37,139.36,7.1762]
[1745074193904,8.89310791,139.38,139.37,7.1757]
[1745074194115,0.05358767,139.38,139.37,7.1757]
[1745074228158,8.89310791,139.38,139.36,7.176]
[1745074228355,8.89310791,139.38,139.35,0.0454638]
[1745074228655,8.83952024,139.36,139.3,33.97952024]
[1745074228953,8.83952024,139.34,139.33,7.1773]
[1745074229659,8.83952024,139.34,139.32,7.178]
[1745074229955,8.83952024,139.34,139.3,25.14]
[1745074230457,8.83952024,139.34,139.32,7.178]
[1745074231860,8.83952024,139.34,139.33,7.1777]
[1745074236866,0.04831317,139.35,139.34,7.1772]
[1745074237468,33.97952024,139.36,139.34,7.1772]
[1745074237967,34.03179502,139.36,139.34,7.1772]
[1745074238565,34.03179502,139.36,139.33,7.1774]
[1745074239266,41.20809502,139.36,139.33,7.1774]
[1745074240767,8.83952024,139.34,139.32,7.22337874]
[1745074241168,8.83952024,139.34,139.32,0.04547874]
[1745074241564,8.83952024,139.34,139.33,7.1777]
[1745074242668,34.03179502,139.36,139.34,7.1771]
[1745074247471,0.05227478,139.36,139.35,7.1767]
[1745074247668,25.14,139.39,139.35,8.83952024]
[1745074248572,25.14,139.39,139.38,7.1752]
[1745074248772,7.1733,139.42,139.35,8.83952024]
[1745074248773,8.83952024,139.41,139.35,8.83952024]
[1745074249071,8.83952024,139.41,139.37,0.0513371]
[1745074249572,8.83952024,139.41,139.39,7.1744]
[1745074250273,8.88658645,139.41,139.39,7.1744]
[1745074259175,8.88658645,139.41,139.37,0.0513371]
[1745074259377,8.83952024,139.39,139.37,0.0513371]
[1745074260276,8.83952024,139.39,139.37,7.2266371]
[1745074260576,8.83952024,139.39,139.37,0.0513371]
[1745074260874,8.83952024,139.39,139.37,7.2267371]
[1745074264879,8.83952024,139.39,139.38,7.1752]
[1745074265779,8.83952024,139.39,139.37,7.2267371]
[1745074266479,8.83952024,139.39,139.38,7.1752]
[1745074268481,16.06048645,139.41,139.38,7.1752]
[1745074277484,7.1743,139.4,139.37,7.2267371]
[1745074277684,8.83952024,139.39,139.37,0.0513371]
[1745074277884,33.97952024,139.39,139.37,0.0513371]
[1745074278582,41.15422024,139.39,139.37,0.0513371]
[1745074279184,33.97952024,139.39,139.37,0.0513371]
[1745074279987,41.15462024,139.39,139.37,0.0513371]
[1745074281391,33.97952024,139.39,139.37,0.0513371]
[1745074282591,41.15432024,139.39,139.37,0.0513371]
[1745074294600,25.14,139.39,139.37,7.2269371]
[1745074299199,25.14,139.39,139.37,0.0513371]
[1745074299400,8.83952024,139.38,139.37,0.0513371]
[1745074305403,25.14,139.39,139.37,7.2270371]
[1745074305602,25.14,139.39,139.37,0.0513371]
[1745074306004,25.14,139.39,139.38,7.1752]
[1745074314313,25.14,139.39,139.37,0.0513371]
[1745074314517,8.83952024,139.38,139.37,0.0513371]
[1745074315818,16.01472024,139.38,139.37,0.0513371]
[1745074319522,8.83952024,139.38,139.37,0.0513371]
[1745074321620,16.01472024,139.38,139.37,0.0513371]
[1745074322822,8.83952024,139.38,139.37,0.0513371]
[1745074323623,16.01472024,139.38,139.37,0.0513371]
[1745074323824,16.01472024,139.38,139.34,7.177]
[1745074324124,7.1757,139.37,139.34,7.177]
[1745074325126,7.22872874,139.37,139.34,7.177]
[1745074325423,16.01572024,139.36,139.33,7.1775]
[1745074325818,41.13572024,139.36,139.33,7.1775]
[1745074326326,33.95952024,139.36,139.33,7.1775]
[1745074328026,33.95952024,139.36,139.34,7.1772]
[1745074328826,34.01186605,139.36,139.34,7.1772]
[1745074329925,25.17234581,139.36,139.35,7.1767]
[1745074330222,0.05234581,139.36,139.35,7.1767]
[1745074338540,8.89186605,139.36,139.29,25.12]
[1745074338843,8.89186605,139.36,139.31,8.83952024]
[1745074339033,0.05234581,139.36,139.31,8.83952024]
[1745074340039,0.05234581,139.36,139.34,7.1772]
[1745074346243,0.05234581,139.36,139.33,7.1775]
[1745074347741,0.05234581,139.36,139.31,8.83952024]
[1745074347945,0.05234581,139.36,139.33,8.83952024]
[1745074349143,0.05234581,139.36,139.35,7.1767]
[1745074350943,0.05234581,139.36,139.34,7.1769]
[1745074351343,8.89186605,139.36,139.32,25.12]
[1745074351539,16.06826605,139.36,139.32,7.178]
[1745074351858,16.06826605,139.36,139.31,8.83952024]
[1745074352645,16.06826605,139.36,139.33,7.1777]
[1745074354046,8.89186605,139.36,139.33,7.1777]
[1745074355246,7.22854581,139.36,139.33,7.1777]
[1745074355446,16.06806605,139.36,139.33,7.1777]
[1745074356844,7.1768,139.35,139.32,7.1781]
[1745074358243,7.1768,139.35,139.31,7.1786]
[1745074359350,7.1768,139.35,139.32,7.1781]
[1745074362652,7.1768,139.35,139.31,7.1785]
[1745074363253,7.1772,139.34,139.31,7.1785]
[1745074363453,34.01186605,139.36,139.31,7.1785]
[1745074363654,34.01186605,139.36,139.29,33.95952024]
[1745074364254,7.177,139.35,139.31,7.1784]
[1745074364454,7.177,139.35,139.29,33.95952024]
[1745074364848,7.1774,139.34,139.31,7.1785]
[1745074365051,8.83952024,139.34,139.29,33.95952024]
[1745074365457,7.1778,139.33,139.3,7.1789]
[1745074365858,7.23291168,139.33,139.3,7.1789]
[1745074366960,0.05511168,139.33,139.31,7.1787]
[1745074368660,0.05511168,139.33,139.32,7.1782]
[1745074375968,25.12,139.39,139.37,7.1757]
[1745074382072,25.12,139.39,139.36,7.1759]
[1745074383370,25.12,139.39,139.37,7.1757]
[1745074388479,25.12,139.39,139.36,7.1759]
[1745074389679,32.2947,139.39,139.36,7.1759]
[1745074390378,8.83952024,139.38,139.36,7.1759]
[1745074393980,8.88568285,139.38,139.36,7.23095252]
[1745074404190,0.04616261,139.38,139.37,7.1757]
[1745074405690,0.04616261,139.38,139.36,7.23105252]
[1745074406290,0.04616261,139.38,139.36,0.05505252]
[1745074406490,8.83952024,139.37,139.36,0.05505252]
[1745074407890,8.83952024,139.37,139.36,7.23125252]
[1745074408091,0.04616261,139.38,139.36,7.23125252]
[1745074408290,0.04616261,139.38,139.36,0.05505252]
[1745074408691,0.04616261,139.38,139.37,7.1757]
[1745074420000,33.93952024,139.42,139.4,7.174]
[1745074420500,33.93952024,139.42,139.41,7.1736]
[1745074420700,9.14001024,139.43,139.38,8.83952024]
[1745074421200,9.14001024,139.43,139.41,7.1732]
[1745074423399,0.30049,139.43,139.41,7.1732]
[1745074423601,0.30049,139.43,139.42,7.1731]
[1745074424402,35.97012024,139.46,139.44,7.1718]
[1745074425098,27.1306,139.46,139.44,7.1718]
[1745074425298,8.83952024,139.47,139.45,7.1716]
[1745074426704,8.83952024,139.47,139.44,7.21855659]
[1745074427006,8.83952024,139.47,139.44,0.04675659]
[1745074427305,25.1,139.49,139.46,7.1706]
[1745074429305,32.2695,139.49,139.46,7.1706]
[1745074429700,8.83952024,139.48,139.45,7.1713]
[1745074430007,16.00962024,139.48,139.45,7.1713]
[1745074431808,8.83952024,139.46,139.44,7.21855659]
[1745074432007,8.83952024,139.46,139.44,0.04675659]
[1745074433307,16.00982024,139.48,139.44,0.04675659]
[1745074434009,16.00982024,139.48,139.44,7.21845659]
[1745074439714,33.93952024,139.49,139.44,8.88627683]
[1745074439911,9.11971024,139.5,139.46,8.83952024]
[1745074440113,0.28019,139.5,139.46,8.83952024]
[1745074440314,0.28019,139.5,139.49,7.1695]
[1745074440612,33.91952024,139.52,139.49,7.1695]
[1745074440816,41.08772024,139.52,139.48,7.1696]
[1745074441214,41.08772024,139.52,139.49,0.04690949]
[1745074441614,41.08772024,139.52,139.49,7.21610949]
[1745074442515,41.08772024,139.52,139.49,0.04690949]
[1745074442814,8.83952024,139.5,139.49,0.04690949]
[1745074446818,16.00852024,139.5,139.49,0.04690949]
[1745074448823,23.0,139.49,139.32,8.49716875]
[1745074449027,8.83952024,139.34,139.33,1.31744542]
[1745074449323,8.83952024,139.34,139.32,8.49716875]
[1745074449624,8.83952024,139.33,139.32,8.49716875]
[1745074450725,8.83952024,139.33,139.3,7.1789]
[1745074453029,8.83952024,139.33,139.31,7.1787]
[1745074454525,8.83952024,139.33,139.31,7.22865104]
[1745074455030,8.89246828,139.33,139.31,7.22865104]
[1745074458833,8.89246828,139.33,139.32,7.1782]
[1745074460735,0.05294804,139.33,139.32,7.1782]
[1745074471341,8.89246828,139.33,139.31,0.04995104]
[1745074472438,16.07036828,139.33,139.31,0.04995104]
[1745074473540,8.89246828,139.33,139.31,0.04995104]
[1745074474041,16.07046828,139.33,139.31,0.04995104]
[1745074474939,7.1782,139.32,139.31,0.04995104]
[1745074475341,16.07046828,139.33,139.31,0.04995104]
[1745074477844,8.89246828,139.33,139.31,7.22865104]
[1745074482551,8.89246828,139.33,139.32,7.1782]
[1745074482750,8.89246828,139.33,139.31,0.04995104]
[1745074483051,8.89246828,139.33,139.31,7.22865104]
[1745074485053,16.07036828,139.33,139.31,0.04995104]
[1745074485251,16.07036828,139.33,139.3,7.179]
[1745074485550,8.83952024,139.31,139.3,7.179]
[1745074486961,8.83952024,139.31,139.29,7.1795]
[1745074487957,8.89235063,139.31,139.3,7.1793]
[1745074488161,0.05283039,139.31,139.3,7.1793]
[1745074489860,0.05283039,139.31,139.29,7.1796]
[1745074490166,0.05283039,139.31,139.26,25.24]
[1745074491770,0.05283039,139.31,139.3,7.1793]
[1745074502873,8.89235063,139.31,139.3,7.1793]
[1745074505975,0.05283039,139.31,139.3,7.1793]
[1745074548816,8.83952024,139.35,139.29,34.00959705]
[1745074549417,8.83952024,139.35,139.34,7.1772]
[1745074555119,33.95952024,139.37,139.36,7.1762]
[1745074555315,25.12,139.37,139.36,7.1762]
[1745074555514,8.83952024,139.38,139.37,7.1757]
[1745074556121,10.77282024,139.39,139.38,7.1752]
[1745074556316,8.83952024,139.39,139.38,7.1752]
[1745074557724,8.83952024,139.39,139.37,7.1754]
[1745074558825,16.01412024,139.39,139.36,7.1759]
[1745074559024,8.83952024,139.37,139.32,25.1]
[1745074559522,33.93952024,139.37,139.32,25.1]
[1745074559721,33.93952024,139.37,139.35,7.1766]
[1745074559922,33.93952024,139.37,139.32,25.1]
[1745074560223,33.93952024,139.37,139.34,7.1768]
[1745074561126,33.93952024,139.37,139.32,25.1]
[1745074561821,33.93952024,139.37,139.36,7.1762]
[1745074562924,25.1,139.37,139.36,7.1762]
[1745074567530,10.87862024,139.39,139.37,7.1757]
[1745074572731,18.05332024,139.39,139.36,7.1759]
[1745074572928,20.06582024,139.39,139.36,7.1759]
[1745074577137,20.11584955,139.39,139.36,7.1759]
[1745074577340,20.11584955,139.39,139.36,7.22816777]
[1745074585248,12.94114955,139.39,139.37,7.1755]
[1745074586148,10.92864955,139.39,139.37,7.1755]
[1745074586350,8.88954955,139.39,139.37,7.1755]
[1745074588351,0.05002931,139.39,139.38,7.1752]
[1745074593550,0.05002931,139.39,139.37,7.1754]
[1745074593755,8.83952024,139.38,139.36,0.05226777]
[1745074596258,16.01482024,139.38,139.36,0.05226777]
[1745074599257,7.1757,139.37,139.36,0.05226777]
[1745074599659,32.2757,139.37,139.36,0.05226777]
[1745074599860,16.01642024,139.35,139.29,8.83952024]
[1745074600059,8.83952024,139.33,139.27,33.93952024]
[1745074600359,16.01752024,139.33,139.29,7.1795]
[1745074601058,0.04906583,139.32,139.29,7.1795]
[1745074601255,0.04906583,139.32,139.28,7.1801]
[1745074601459,8.83952024,139.31,139.28,7.1801]
[1745074604160,16.01832024,139.31,139.28,7.1801]
[1745074605863,8.83952024,139.31,139.28,7.1801]
[1745074606064,8.83952024,139.29,139.24,35.87362024]
[1745074606558,8.83952024,139.29,139.27,7.1808]
[1745074607063,0.04956032,139.28,139.27,7.1808]
[1745074611667,25.1,139.31,139.29,7.1793]
[1745074612066,25.1,139.31,139.27,8.83952024]
[1745074612260,8.83952024,139.33,139.27,8.83952024]
[1745074613267,8.83952024,139.33,139.31,7.1785]
[1745074614162,8.83952024,139.33,139.31,7.22580433]
[1745074615870,8.83952024,139.33,139.32,7.1782]
[1745074617672,8.83952024,139.33,139.31,7.22580433]
[1745074618370,8.83952024,139.33,139.32,7.1782]
[1745074619375,0.34237,139.35,139.31,0.04730433]
[1745074619672,0.34237,139.35,139.33,8.83952024]
[1745074619673,0.04659095,139.34,139.33,8.83952024]
[1745074620373,0.04659095,139.34,139.33,16.01722024]
[1745074620569,0.34237,139.35,139.33,8.83952024]
[1745074620773,0.34237,139.35,139.33,33.93952024]
[1745074620969,33.93952024,139.41,139.33,33.93952024]
[1745074621470,33.93952024,139.41,139.38,7.1748]
[1745074621777,33.93952024,139.41,139.35,8.83952024]
[1745074622074,25.1,139.41,139.4,7.1741]
[1745074622274,25.1,139.41,139.37,8.83952024]
[1745074622472,0.04951356,139.39,139.37,8.83952024]
[1745074622972,0.04951356,139.39,139.38,7.1752]
[1745074624076,0.04951356,139.39,139.37,7.22303097]
[1745074625076,0.04951356,139.39,139.38,7.1752]
[1745074625275,0.04951356,139.39,139.37,0.04773097]
[1745074625471,1.43389733,139.48,139.38,602.21952024]
[1745074625676,14.80781708,139.54,139.47,8.83952024]
[1745074625875,14.80781708,139.54,139.49,8.83952024]
[1745074626076,16.00612024,139.55,139.49,8.83952024]
[1745074626273,16.00612024,139.55,139.5,7.1685]
[1745074626477,8.83952024,139.55,139.49,8.83952024]
[1745074626678,8.83952024,139.55,139.51,7.168]
[1745074626877,8.83952024,139.55,139.51,7.21586741]
[1745074627178,8.83952024,139.55,139.51,0.04786741]
[1745074627476,1.9111,139.56,139.51,8.88738765]
[1745074627678,1.9111,139.56,139.51,33.98738765]
[1745074627877,8.83952024,139.55,139.51,25.14786741]
[1745074628879,8.83952024,139.55,139.52,7.1676]
[1745074629275,8.83952024,139.55,139.51,25.14786741]
[1745074629478,8.83952024,139.55,139.53,7.1671]
[1745074630081,80.64144932,139.57,139.54,7.1669]
[1745074630982,1.9831,139.6,139.54,0.05121082]
[1745074631180,8.83952024,139.59,139.54,33.97073106]
[1745074631786,8.83952024,139.59,139.56,7.1656]
[1745074632683,8.83952024,139.57,139.54,0.05121082]
[1745074633983,8.83952024,139.57,139.54,7.21811082]
[1745074640494,8.83952024,139.57,139.54,0.05121082]
[1745074641296,8.88667662,139.57,139.54,0.05121082]
[1745074642498,8.88667662,139.57,139.54,7.21811082]
[1745074643892,16.05207662,139.57,139.54,0.05121082]
[1745074644095,8.83952024,139.55,139.51,25.06]
[1745074644600,8.83952024,139.55,139.52,7.1676]
[1745074645500,8.83952024,139.55,139.52,7.21815246]
[1745074645900,8.83952024,139.55,139.53,7.1674]
[1745074646902,8.83952024,139.55,139.52,7.21835246]
[1745074648102,7.166,139.56,139.52,7.21835246]
[1745074648400,16.00552024,139.56,139.52,7.21835246]
[1745074650203,8.83952024,139.54,139.52,0.05055246]
[1745074650705,8.83952024,139.52,139.49,25.06]
[1745074651599,8.83952024,139.52,139.49,32.2292]
[1745074652008,16.00752024,139.52,139.49,25.06]
[1745074652599,8.83952024,139.52,139.49,25.06]
[1745074652805,8.83952024,139.52,139.49,32.2295]
[1745074653605,8.83952024,139.52,139.49,7.1695]
[1745074662415,8.83952024,139.5,139.48,7.1698]
[1745074662914,8.83952024,139.5,139.47,7.1703]
[1745074663213,8.83952024,139.5,139.45,27.0976]
[1745074663512,8.83952024,139.5,139.48,7.1698]
[1745074664414,8.83952024,139.5,139.49,7.1695]
[1745074666815,8.83952024,139.5,139.48,7.1698]
[1745074668620,32.428,139.52,139.48,7.1698]
[1745074668918,8.83952024,139.5,139.48,7.1698]
[1745074671820,41.26752024,139.52,139.49,7.1695]
[1745074672126,16.00662024,139.54,139.48,25.26]
[1745074672320,8.83952024,139.54,139.48,34.09952024]
[1745074672512,8.83952024,139.54,139.51,7.168]
[1745074673016,41.26622024,139.55,139.48,34.09952024]
[1745074673821,41.26622024,139.55,139.51,7.1681]
[1745074674118,41.26622024,139.55,139.48,34.09952024]
[1745074675219,41.26622024,139.55,139.51,7.1682]
[1745074680115,8.83952024,139.53,139.48,25.26]
[1745074680322,8.83952024,139.5,139.46,25.26]
[1745074680819,8.83952024,139.5,139.49,7.1695]
[1745074682725,8.83952024,139.5,139.48,0.05253269]
[1745074683325,8.83952024,139.5,139.48,7.22243269]
[1745074687828,0.04758123,139.51,139.48,0.05253269]
[1745074688028,0.04758123,139.51,139.48,8.89205293]
[1745074688522,0.04758123,139.51,139.5,7.169]
[1745074695634,8.83952024,139.55,139.52,7.1674]
[1745074696535,8.83952024,139.55,139.53,7.1673]
[1745074699434,8.83952024,139.55,139.52,0.05304818]
[1745074699435,8.83952024,139.55,139.54,7.1669]
[1745074699833,8.83952024,139.55,139.52,0.05304818]
[1745074700335,8.83952024,139.55,139.53,7.1671]
[1745074701032,8.83952024,139.57,139.54,7.1669]
[1745074701337,8.83952024,139.57,139.52,0.05304818]
[1745074701637,16.00502024,139.57,139.53,7.167]
[1745074705340,8.83952024,139.57,139.54,7.1669]
[1745074706140,8.89260216,139.57,139.54,7.1669]
[1745074708242,16.05800216,139.57,139.53,7.1672]
[1745074709345,8.89260216,139.57,139.54,7.1668]
[1745074709947,16.05800216,139.57,139.54,7.1668]
[1745074710751,8.89260216,139.57,139.54,7.1668]
[1745074712246,16.05800216,139.57,139.54,7.1668]
[1745074712850,16.05800216,139.57,139.53,7.1672]
[1745074713753,16.05800216,139.57,139.54,7.1669]
[1745074715952,8.89260216,139.57,139.54,7.1669]
[1745074716852,16.05810216,139.57,139.54,7.1669]
[1745074717052,8.89260216,139.57,139.54,7.1669]
[1745074718351,0.05308192,139.57,139.54,8.83952024]
[1745074718853,0.05308192,139.57,139.56,7.1659]
[1745074725963,8.89260216,139.57,139.55,0.04645975]
[1745074726561,16.05820216,139.57,139.55,0.04645975]
[1745074727865,7.1659,139.56,139.55,0.04645975]
[1745074729772,9.12318192,139.57,139.55,0.04645975]
[1745074729967,0.05308192,139.57,139.55,0.04645975]
[1745074730468,0.05308192,139.57,139.56,7.1659]
[1745074732269,0.05308192,139.57,139.55,0.04645975]
[1745074734268,7.21848192,139.57,139.55,0.04645975]
[1745074735570,0.05308192,139.57,139.55,0.04645975]
[1745074735770,0.05308192,139.57,139.55,7.21275975]
[1745074736965,0.05308192,139.57,139.56,7.1659]
[1745074737268,0.05308192,139.57,139.55,0.04645975]
[1745074737470,0.05308192,139.57,139.55,7.21245975]
[1745074740272,0.05308192,139.57,139.56,7.1659]
[1745074740573,0.05308192,139.57,139.55,0.04645975]
[1745074741674,0.05308192,139.57,139.56,7.1659]
[1745074744677,0.05308192,139.57,139.55,0.04645975]
[1745074745872,0.05308192,139.57,139.56,7.1659]
[1745074788806,0.05308192,139.57,139.56,32.2259]
[1745074789106,5.6888,139.64,139.56,33.89952024]
[1745074789405,8.83952024,139.63,139.56,33.89952024]
[1745074789598,8.83952024,139.63,139.56,35.76032024]
[1745074790406,8.83952024,139.63,139.61,7.163]
[1745074791210,8.83952024,139.63,139.62,7.1628]
[1745074797613,8.83952024,139.63,139.61,7.21570769]
[1745074799919,8.83952024,139.63,139.61,0.05260769]
[1745074800215,8.89282531,139.63,139.54,8.83952024]
[1745074800420,8.83952024,139.59,139.55,25.06]
[1745074801223,8.83952024,139.57,139.52,8.83952024]
[1745074801418,8.83952024,139.57,139.56,0.04716156]
[1745074801824,8.83952024,139.57,139.53,25.06]
[1745074802224,8.83952024,139.57,139.55,0.04745942]
[1745074804319,16.00492024,139.57,139.55,0.04745942]
[1745074806024,8.83952024,139.57,139.55,0.04745942]
[1745074807024,16.00512024,139.57,139.55,0.04745942]
[1745074807523,8.83952024,139.57,139.55,0.04745942]
[1745074808323,16.00522024,139.57,139.55,0.04745942]
[1745074809923,7.1659,139.56,139.55,0.04745942]
[1745074810420,8.83952024,139.57,139.5,25.06]
[1745074810615,8.83952024,139.52,139.48,8.83952024]
[1745074810822,8.83952024,139.52,139.49,25.06]
[1745074811428,8.83952024,139.5,139.46,8.83952024]
[1745074811735,8.83952024,139.5,139.47,25.06]
[1745074812028,8.83952024,139.5,139.45,25.06]
[1745074813024,8.83952024,139.52,139.48,8.83952024]
[1745074813222,33.89952024,139.54,139.48,33.89952024]
[1745074814427,8.83952024,139.54,139.48,33.89952024]
[1745074814828,8.83952024,139.56,139.5,8.83952024]
[1745074816626,8.83952024,139.56,139.51,25.08]
[1745074820830,25.08,139.57,139.52,8.83952024]
[1745074821040,8.83952024,139.58,139.52,8.83952024]
[1745074823135,8.83952024,139.58,139.54,8.83952024]
[1745074823335,8.83952024,139.6,139.54,33.89952024]
[1745074827634,8.83952024,139.6,139.56,0.05354288]
[1745074827933,0.0487238,139.58,139.56,0.05354288]
[1745074828330,0.0487238,139.58,139.56,8.89306312]
[1745074831638,0.0487238,139.58,139.56,0.05354288]
[1745074831839,0.0487238,139.58,139.56,25.11354288]
[1745074836243,0.0487238,139.58,139.56,0.05354288]
[1745074837240,8.88824404,139.58,139.56,0.05354288]
[1745074839346,0.0487238,139.58,139.56,0.05354288]
[1745074845552,8.88824404,139.58,139.56,0.05354288]
[1745074847055,0.0487238,139.58,139.56,0.05354288]
[1745074848755,0.0487238,139.58,139.56,25.11354288]
[1745074852860,0.0487238,139.58,139.56,0.05354288]
[1745074854864,8.83952024,139.57,139.56,0.05354288]
[1745074860163,0.0487238,139.58,139.56,0.05354288]
[1745074866065,0.0487238,139.58,139.57,8.83952024]
[1745074866870,8.83952024,139.61,139.57,8.83952024]
[1745074868170,0.04742802,139.6,139.57,8.83952024]
[1745074870269,10.27187718,139.63,139.59,8.83952024]
[1745074870769,10.27187718,139.63,139.58,25.06]
[1745074871073,10.27187718,139.63,139.58,33.89952024]
[1745074871573,1.43235694,139.63,139.59,0.05380152]
[1745074873873,10.27187718,139.63,139.59,0.05380152]
[1745074876076,17.43427718,139.63,139.59,0.05380152]
[1745074876278,8.83952024,139.61,139.59,0.05380152]
[1745074876477,8.83952024,139.61,139.53,33.89952024]
[1745074876682,8.83952024,139.57,139.53,25.06]
[1745074877271,8.83952024,139.57,139.52,1.9487]
[1745074877475,8.83952024,139.57,139.53,25.06]
[1745074877975,8.83952024,139.57,139.53,25.10629417]
[1745074878575,8.83952024,139.57,139.53,0.04629417]
[1745074878773,8.83952024,139.57,139.53,25.10629417]
[1745074879275,8.83952024,139.57,139.53,0.04629417]
[1745074882478,16.00502024,139.57,139.53,0.04629417]
[1745074882773,8.83952024,139.57,139.53,0.04629417]
[1745074883278,8.83952024,139.55,139.53,0.04629417]
[1745074890584,33.89952024,139.55,139.53,0.04629417]
[1745074892080,41.06592024,139.55,139.53,0.04629417]
[1745074896481,33.89952024,139.55,139.53,0.04629417]
[1745074898084,8.83952024,139.55,139.53,0.04629417]
[1745074899188,3.997,139.56,139.53,0.04629417]
[1745074908499,8.83952024,139.55,139.53,0.04629417]
[1745074910996,7.1669,139.54,139.53,0.04629417]
[1745074913593,35.80622024,139.55,139.53,0.04629417]
[1745074913795,42.97282024,139.55,139.53,0.04629417]
[1745074915599,41.06612024,139.55,139.53,0.04629417]
[1745074916492,33.89952024,139.55,139.53,0.04629417]
[1745074916697,8.83952024,139.55,139.53,0.04629417]
[1745074920003,25.06,139.58,139.53,0.04629417]
[1745074920204,33.89952024,139.58,139.53,0.04629417]
[1745074920801,41.06442024,139.58,139.53,0.04629417]
[1745074925508,8.83952024,139.56,139.53,0.04629417]
[1745074928211,8.83952024,139.54,139.53,0.04629417]
[1745074932019,16.00642024,139.54,139.53,0.04629417]
[1745074932413,8.83952024,139.54,139.53,0.04629417]
[1745074937520,8.83952024,139.54,139.49,25.06]
[1745074937716,8.83952024,139.54,139.49,33.89952024]
[1745074939422,8.83952024,139.54,139.5,0.04994892]
[1745074941921,33.94723859,139.55,139.5,0.04994892]
[1745074942118,8.88723859,139.55,139.51,8.83952024]
[1745074945225,8.88723859,139.55,139.5,8.88946916]
[1745074945526,8.88723859,139.55,139.5,0.04994892]
[1745074945918,16.05393859,139.55,139.5,0.04994892]
[1745074946119,8.83952024,139.53,139.5,0.04994892]
[1745074946426,16.00702024,139.53,139.5,0.04994892]
[1745074949230,8.83952024,139.53,139.51,7.1684]
[1745074949430,8.83952024,139.53,139.5,0.04994892]
[1745074949626,8.83952024,139.51,139.5,0.04994892]
[1745074951231,8.83952024,139.51,139.5,7.21894892]
[1745074953931,8.83952024,139.51,139.5,0.04994892]
[1745074954735,8.83952024,139.51,139.45,25.06]
[1745074954934,8.83952024,139.48,139.41,25.06]
[1745074955129,8.83952024,139.48,139.42,8.83952024]
[1745074956134,0.0454941,139.46,139.44,8.83952024]
[1745074956433,0.0454941,139.46,139.45,25.06]
[1745074962938,8.88501434,139.46,139.41,8.83952024]
[1745074963138,8.88501434,139.46,139.42,25.08]
[1745074965442,0.0454941,139.46,139.43,8.83952024]
[1745074976247,0.0454941,139.46,139.42,25.08]
[1745074976446,0.0454941,139.46,139.43,8.83952024]
[1745074988254,0.0454941,139.46,139.42,25.08]
[1745074988460,0.0454941,139.46,139.43,25.08]
[1745074994563,0.0454941,139.46,139.44,8.83952024]
[1745074994866,8.83952024,139.53,139.44,8.83952024]
[1745074995066,8.83952024,139.53,139.49,8.83952024]
[1745074995263,10.74302024,139.54,139.49,33.91952024]
[1745074995468,8.83952024,139.53,139.49,25.08]
[1745074995667,1.9035,139.54,139.51,8.83952024]